fUSD/lending_fUSD_20240805
["ID","MTS","AMOUNT","RATE_DAILY","PERIOD"]
[334275673,1722882641939,-3375.53455105,0.00011,2]
[334275897,1722882644005,-223.34,0.00010959,2]
[334275899,1722882644014,-6421.83838912,0.00011,2]
[334275903,1722882644047,-6004.27155349,0.00011,2]
[334275905,1722882644065,-831.872596,0.00011,2]
[334275907,1722882644077,-296.95776435,0.00011,2]
[334275910,1722882644088,-566.62860673,0.00011,2]
[334275912,1722882644099,-317.58278286,0.00011,2]
[334275914,1722882644110,-31260.49999999,0.00011,2]
[334275916,1722882644121,-1069.00953092,0.00011,2]
[334275918,1722882644132,-174103.52807185,0.00011,2]
[334275921,1722882644150,-457.46955249,0.00011,2]
[334275923,1722882644160,-1777.28742832,0.00011,2]
[334275925,1722882644171,-6950.22205377,0.00011,2]
[334276108,1722882645971,-288.87530243,0.00011,2]
[334276110,1722882645983,-552.7752,0.00011,2]
[334276120,1722882646077,-261.58629144,0.00011,2]
[334276122,1722882646088,-496.91114993,0.00011,2]
[334276124,1722882646100,-1560.95,0.00011,2]
[334276126,1722882646111,-7024.07444932,0.00011,2]
[334276129,1722882646122,-376.87925389,0.00011,2]
[334276135,1722882646174,-4239.70031719,0.00011,2]
[334276137,1722882646186,-1568.19501336,0.00011,2]
[334276139,1722882646197,-276.43656426,0.00011,2]
[334276141,1722882646208,-2693.82653913,0.00011,2]
[334276143,1722882646219,-782.5125,0.00011,2]
[334276149,1722882646261,-436.81,0.00011,2]
[334276927,1722882929977,653.16,9.364e-05,2]
[334276928,1722883004762,227.63850404,9.364e-05,2]
[334276929,1722883005228,1633.46873973,9.364e-05,2]
[334276930,1722883015771,227.63850404,9.364e-05,2]
[334276931,1722883328489,227.01,9.288e-05,2]
[334276932,1722883407054,500.0,9.214e-05,2]
[334276934,1722883511149,652.0,8.219e-05,2]
[334276970,1722883833036,-250.0,9.765e-05,2]
[334276971,1722883833047,-300.0,9.818e-05,2]
[334276972,1722883833057,-2494.05,9.819e-05,2]
[334276973,1722883833173,-21405.95,9.819e-05,2]
[334276974,1722883833183,-800.0,9.952e-05,2]
[334276975,1722883833193,-151.28,0.0001,2]
[334276976,1722883833202,-150.0,0.0001,2]
[334276977,1722883833212,-151.28,0.00010004,2]
[334276978,1722883833222,-151.28,0.00010008,2]
[334276979,1722883833231,-151.28,0.00010012,2]
[334276980,1722883833241,-151.28,0.00010017,2]
[334276981,1722883833250,-499.99,0.00010017,2]
[334276982,1722883833260,-151.28,0.00010021,2]
[334276983,1722883833271,-151.28,0.00010025,2]
[334276984,1722883833280,-151.28,0.00010029,2]
[334276985,1722883833290,-151.28,0.00010033,2]
[334276986,1722883833300,-151.28,0.00010037,2]
[334276987,1722883833310,-151.28,0.00010042,2]
[334276988,1722883833321,-151.28,0.00010046,2]
[334276989,1722883833330,-151.28,0.0001005,2]
[334276990,1722883833340,-652.0,0.00010471,2]
[334276991,1722883833349,-150.0,0.000108,2]
[334276992,1722883833359,-420.0,0.000108,2]
[334276993,1722883833368,-3237.2772,0.000109,2]
[334276994,1722883833379,-600.0,0.000109,3]
[334276995,1722883833389,-328.1519,0.000109,2]
[334276996,1722883833399,-213.1342,0.000109,2]
[334276998,1722883833409,-1000.0,0.000109,2]
[334277000,1722883833418,-628.2859,0.000109,2]
[334277002,1722883833429,-250.0,0.00010959,2]
[334277003,1722883833439,-186.12,0.00010959,2]
[334277004,1722883833448,-155.1,0.00010959,2]
[334277005,1722883833458,-775.53,0.00010959,2]
[334277006,1722883833467,-150.0,0.00010959,2]
[334277007,1722883833477,-150.0,0.0001099,2]
[334277008,1722883833487,-151.12,0.0001099,2]
[334277009,1722883833500,-72735.31193117,0.00011,2]
[334277010,1722883833515,-421.24016453,0.00011,2]
[334277011,1722883833528,-609.86344662,0.00011,2]
[334277012,1722883833541,-554.03,0.00011,2]
[334277013,1722883833557,-5993.974656,0.00011,2]
[334277014,1722883833572,-3082.03617125,0.00011,2]
[334277022,1722883837892,-500.54133244,0.000109,2]
[334277023,1722883837904,-1656.79116756,0.000109,2]
[334277024,1722883837914,-6368.62608635,0.00011,2]
[334277025,1722883838002,-1276.65257168,0.00011,2]
[334277031,1722883839929,-282.48007,0.00011,2]
[334277033,1722883839942,-1414.99992,0.00011,2]
[334277034,1722883839955,-260.76846935,0.00011,2]
[334277035,1722883839967,-1458.3624304,0.00011,2]
[334277036,1722883842858,-6347.87992799,0.00011,2]
[334277038,1722883842869,-5358.0,0.00011,2]
[334277039,1722883842882,-607.5499219,0.00011,2]
[334277109,1722883843651,-2447.60779868,0.00011,2]
[334277110,1722883843663,-328.39001,0.00011,2]
[334277111,1722883843675,-1960.67903094,0.00011,2]
[334277112,1722883843687,-444.24779552,0.00011,2]
[334277113,1722883843704,-529.685291,0.00011,2]
[334277114,1722883843716,-2761.82222957,0.00011,2]
[334277115,1722883843742,-726.912,0.00011,2]
[334277116,1722883843755,-571.571,0.00011,2]
[334277117,1722883843772,-311.7686698,0.00011,2]
[334277118,1722883843784,-6644.55524363,0.00011,2]
[334277119,1722883843795,-6802.53090105,0.00011,2]
[334277120,1722883843807,-338.33948636,0.00011,2]
[334277122,1722883843818,-463.3999995,0.00011,2]
[334277123,1722883843830,-7440.45079688,0.00011,2]
[334277125,1722883843842,-63810.20655245,0.00011,2]
[334277126,1722883843862,-673.55356234,0.00011,2]
[334277127,1722883843874,-5536.63052667,0.00011,2]
[334277166,1722883846704,-2704.1403707,0.00011,2]
[334277167,1722883846716,-844.76711332,0.00011,2]
[334277168,1722883846840,-53607.145,0.00011,2]
[334277169,1722883846853,-2104.89394442,0.00011,2]
[334277274,1722884119800,659.47,9.293e-05,2]
[334277277,1722884451308,2847.04547583,9.293e-05,2]
[334277278,1722884486425,-3960.5705,0.0001,2]
[334277279,1722884486450,-1479.35270892,0.000108,2]
[334277280,1722884486474,-1479.35270892,0.000108,2]
[334277281,1722884486498,-10452.4721,0.000108,2]
[334277282,1722884486521,-1000.0,0.000109,2]
[334277283,1722884493854,816.9394172,9.293e-05,2]
[334277284,1722884503687,7231.5072,0.000109,2]
[334277285,1722884529313,222.30002186,0.000109,2]
[334277286,1722884594666,663.14,9.218e-05,2]
[334277287,1722884604215,241.3653431,0.00010813,2]
[334277288,1722884604238,258.6346569,0.00010813,2]
[334277291,1722884793200,507.3657,0.0001089,2]
[334277292,1722884814633,194.51251911,0.000109,2]
[334277298,1722884851792,500.0,0.00025,60]
[334277299,1722884857027,500.0,0.00025,60]
[334277300,1722884863418,500.0,0.00025,60]
[334277310,1722884967832,1000.0,0.000109,2]
[334277311,1722884980348,2967.8838,0.000109,2]
[334277374,1722885034363,-500.0,0.00010959,2]
[334277375,1722885034373,-200.0,0.00010959,2]
[334277376,1722885034383,-778.2,0.00010959,2]
[334277377,1722885034392,-155.0,0.00010999,2]
[334277378,1722885034406,-8083.11230188,0.00011,2]
[334277379,1722885035467,664.79,9.249e-05,2]
[334277385,1722885038168,-1203.88782761,0.00011,2]
[334277386,1722885038180,-782.42871167,0.00011,2]
[334277387,1722885038191,-250.06229916,0.00011,2]
[334277388,1722885038203,-396.59463394,0.00011,2]
[334277389,1722885038311,-15500.0,0.00011,2]
[334277390,1722885038323,-450.10227198,0.00011,2]
[334277391,1722885038335,-8076.0428608,0.00011,2]
[334277392,1722885038346,-1602.49620995,0.00011,2]
[334277393,1722885038361,-3444.51359154,0.00011,2]
[334277394,1722885038373,-426.46526203,0.00011,2]
[334277395,1722885038384,-783.45476951,0.00011,2]
[334277396,1722885038395,-576.90968791,0.00011,2]
[334277397,1722885038464,-4800.39560001,0.00011,2]
[334277399,1722885038476,-2412.42714,0.00011,2]
[334277400,1722885038487,-6035.8958172,0.00011,2]
[334277401,1722885038499,-10130.14277034,0.00011,2]
[334277402,1722885038511,-26355.15348965,0.00011,2]
[334277454,1722885040254,-347.50656736,0.00011,2]
[334277455,1722885040266,-807.73443717,0.00011,2]
[334277457,1722885040415,-6044.832,0.00011,2]
[334277458,1722885040427,-2916.0,0.00011,2]
[334277459,1722885040441,-980.95289146,0.00011,2]
[334277460,1722885040561,-1210.22,0.00011,2]
[334277461,1722885040573,-232908.90829945,0.00011,2]
[334277462,1722885040583,-524.27789,0.00011,2]
[334277463,1722885040593,-28145.65904328,0.00011,2]
[334277464,1722885040603,-1000.0,0.00011,2]
[334277465,1722885040612,-319.02823927,0.00011005,2]
[334277466,1722885040622,-826.53,0.00011071,2]
[334277467,1722885040632,-150.99,0.000111,2]
[334277468,1722885040642,-7951.04,0.00011104,2]
[334277469,1722885040655,-3472.49405737,0.00011105,2]
[334277470,1722885040664,-10527.99021344,0.00011105,2]
[334277472,1722885040674,-625.943723,0.00011105,2]
[334277474,1722885040684,-921.03072838,0.00011105,2]
[334277476,1722885040693,-480.98966334,0.00011105,2]
[334277478,1722885040703,-5202.52468005,0.00011105,2]
[334277480,1722885040713,-159.47000849,0.00011105,2]
[334277481,1722885040723,-205.81331723,0.00011105,2]
[334277482,1722885040734,-294.24898824,0.00011105,2]
[334277483,1722885040744,-2207.56195178,0.00011105,2]
[334277484,1722885040755,-379.82654153,0.00011105,2]
[334277485,1722885040766,-202.77094298,0.00011105,2]
[334277486,1722885040777,-210.93263361,0.00011105,2]
[334277487,1722885040787,-173.40082567,0.00011105,2]
[334277488,1722885040797,-439.81414465,0.00011105,2]
[334277489,1722885040808,-165.40738318,0.00011105,2]
[334277490,1722885040817,-3977.2935375,0.00011105,2]
[334277491,1722885040827,-234.16960797,0.00011105,2]
[334277492,1722885040837,-285.3704562,0.00011105,2]
[334277493,1722885040847,-155.0,0.00011105,2]
[334277494,1722885040857,-3080.259936,0.00011105,2]
[334277495,1722885040871,-12126.90293789,0.00011105,2]
[334277496,1722885040880,-1405.19425176,0.00011105,2]
[334277497,1722885040890,-155.0,0.00011105,2]
[334277498,1722885040903,-3118.97189145,0.00011105,2]
[334277499,1722885040914,-3410.21590667,0.00011105,2]
[334277500,1722885040924,-519.81232661,0.00011105,2]
[334277501,1722885040933,-277.09426696,0.00011105,2]
[334277502,1722885040943,-722.96983282,0.00011105,2]
[334277503,1722885040953,-628.24443844,0.00011105,2]
[334277504,1722885040962,-9794.08812552,0.00011105,2]
[334277505,1722885040971,-1176.15950994,0.00011105,2]
[334277506,1722885040980,-531.93797373,0.00011105,2]
[334277507,1722885040989,-155.0,0.00011105,2]
[334277508,1722885040999,-155.0,0.00011105,2]
[334277509,1722885041008,-162.89676018,0.00011105,2]
[334277510,1722885041018,-2144.62791432,0.00011105,2]
[334277511,1722885041027,-719.52629142,0.00011105,2]
[334277512,1722885041036,-282.04147473,0.00011105,2]
[334277513,1722885041046,-1138.37465577,0.00011105,2]
[334277514,1722885041056,-649.45918791,0.00011105,2]
[334277515,1722885041066,-202.82860063,0.00011105,2]
[334277516,1722885041075,-192.98190672,0.00011105,2]
[334277517,1722885041085,-329.53592595,0.00011105,2]
[334277518,1722885041095,-155.0,0.00011105,2]
[334277519,1722885041104,-265.28035561,0.00011105,2]
[334277520,1722885041114,-244.81456289,0.00011105,2]
[334277521,1722885041124,-155.0,0.00011105,2]
[334277522,1722885041134,-418.92266229,0.00011105,2]
[334277523,1722885041143,-259.98867043,0.00011105,2]
[334277524,1722885041153,-156.81644864,0.00011105,2]
[334277525,1722885041162,-201.87725983,0.00011105,2]
[334277526,1722885041172,-159.23788851,0.00011105,2]
[334277527,1722885041181,-155.0,0.00011105,2]
[334277528,1722885041191,-347.01522635,0.00011105,2]
[334277529,1722885041200,-155.21039969,0.00011105,2]
[334277530,1722885041210,-3402.25151975,0.00011105,2]
[334277531,1722885041219,-212.00809713,0.00011105,2]
[334277532,1722885041228,-328.03918771,0.00011105,2]
[334277533,1722885041237,-365.50885499,0.00011105,2]
[334277534,1722885041247,-155.0,0.00011105,2]
[334277535,1722885041258,-155.0,0.00011105,2]
[334277536,1722885041268,-155.0,0.00011105,2]
[334277537,1722885041278,-330.00668886,0.00011105,2]
[334277538,1722885041288,-155.0,0.00011105,2]
[334277539,1722885041298,-367.64405093,0.00011105,2]
[334277540,1722885041308,-653.24000473,0.00011105,2]
[334277541,1722885041319,-218.77944705,0.00011105,2]
[334277542,1722885041329,-600.38361179,0.00011105,2]
[334277543,1722885041340,-551.56599381,0.00011105,2]
[334277544,1722885041350,-155.0,0.00011105,2]
[334277545,1722885041361,-164.28139414,0.00011105,2]
[334277546,1722885041370,-359.17322688,0.00011105,2]
[334277547,1722885041380,-594.69883351,0.00011105,2]
[334277548,1722885041389,-155.0,0.00011105,2]
[334277549,1722885041398,-155.0,0.00011105,2]
[334277550,1722885041411,-454.307743,0.00011105,2]
[334277551,1722885041420,-655.57508538,0.00011105,2]
[334277552,1722885041430,-499.99,0.00011105,2]
[334277553,1722885041439,-640.0,0.0001117,2]
[334277554,1722885041448,-21450.34021177,0.00011186,2]
[334277555,1722885041459,-961.9744854,0.00011186,2]
[334277556,1722885041468,-4168.65687286,0.00011205,2]
[334277557,1722885041481,-1315.03107703,0.00011205,2]
[334277558,1722885041492,-171.79,0.0001121,2]
[334277559,1722885041501,-176.7,0.00011212,2]
[334277560,1722885041511,-360.0,0.0001123,2]
[334277561,1722885041520,-199.69,0.0001124,2]
[334277562,1722885041529,-250.0,0.00011269,2]
[334277563,1722885041538,-250.0,0.00011282,2]
[334277564,1722885041547,-150.0,0.00011329,2]
[334277565,1722885041556,-276.50958696,0.0001135,2]
[334277566,1722885041565,-664.79,0.00011513,2]
[334277567,1722885041574,-151.0,0.00011567,2]
[334277568,1722885041583,-151.0,0.00011571,2]
[334277569,1722885041593,-151.0,0.00011575,2]
[334277570,1722885041602,-151.0,0.00011579,2]
[334277571,1722885041611,-151.0,0.00011583,2]
[334277572,1722885041620,-151.0,0.00011587,2]
[334277573,1722885041630,-151.0,0.00011591,2]
[334277574,1722885041639,-151.0,0.00011596,2]
[334277575,1722885041649,-151.0,0.000116,2]
[334277576,1722885041663,-151.0,0.00011604,2]
[334277577,1722885041679,-151.0,0.00011608,2]
[334277578,1722885041688,-151.0,0.00011612,2]
[334277579,1722885041698,-151.0,0.00011616,2]
[334277580,1722885041708,-151.0,0.0001162,2]
[334277581,1722885041718,-151.0,0.00011625,2]
[334277582,1722885041728,-151.12,0.0001199,2]
[334277583,1722885041738,-164.68926633,0.00012,2]
[334277584,1722885041748,-229.66,0.00012,2]
[334277585,1722885041758,-229.66,0.00012,2]
[334277586,1722885041767,-229.66,0.00012,2]
[334277587,1722885041777,-229.66,0.00012,2]
[334277588,1722885041786,-229.66,0.00012,2]
[334277589,1722885041795,-229.66,0.00012,2]
[334277590,1722885041805,-229.66,0.00012,2]
[334277591,1722885041814,-229.66,0.00012,2]
[334277592,1722885041823,-229.66,0.00012,2]
[334277593,1722885041833,-229.66,0.00012,2]
[334277594,1722885041842,-229.66,0.00012,2]
[334277595,1722885041852,-229.66,0.00012,2]
[334277596,1722885041862,-229.66,0.00012,2]
[334277597,1722885041872,-229.66,0.00012,2]
[334277598,1722885041886,-229.66,0.00012,2]
[334277599,1722885041895,-229.66,0.00012,2]
[334277600,1722885041910,-229.66,0.00012,2]
[334277601,1722885041920,-229.66,0.00012,2]
[334277602,1722885041929,-229.66,0.00012,2]
[334277603,1722885041939,-229.66,0.00012,2]
[334277604,1722885041948,-229.66,0.00012,2]
[334277605,1722885041962,-229.66,0.00012,2]
[334277606,1722885041972,-229.66,0.00012,2]
[334277607,1722885041981,-357.0,0.000122,2]
[334277608,1722885041990,-1000.0,0.000122,2]
[334277609,1722885042001,-226.0,0.000122,2]
[334277610,1722885042011,-187.61,0.00012371,2]
[334277611,1722885042020,-640.0,0.00012566,2]
[334277612,1722885042030,-171.79,0.00012611,2]
[334277613,1722885042039,-360.0,0.00012633,2]
[334277614,1722885042049,-150.0,0.00012649,5]
[334277615,1722885042058,-211.57315347,0.00012818,2]
[334277616,1722885042068,-264.3297815,0.00012818,2]
[334277617,1722885042078,-250.23523546,0.00012883,2]
[334277618,1722885042087,-167.30011434,0.00012924,2]
[334277619,1722885042097,-155.08363915,0.00012928,2]
[334277620,1722885042106,-297.29865721,0.00012928,2]
[334277621,1722885042116,-155.0,0.00013297,2]
[334277622,1722885042126,-155.0,0.0001331,2]
[334277623,1722885042135,-392.15,0.000135,2]
[334277624,1722885042145,-155.0,0.00013648,2]
[334277625,1722885042158,-1000.0,0.00013699,2]
[334277626,1722885042168,-156.66,0.00013699,2]
[334277627,1722885042178,-500.0,0.00013699,2]
[334277628,1722885042188,-500.0,0.00013699,2]
[334277629,1722885042197,-500.0,0.00013699,2]
[334277630,1722885042207,-500.0,0.00013699,2]
[334277631,1722885042216,-664.79,0.00013777,2]
[334277632,1722885042225,-121490.069216,0.000138,3]
[334277633,1722885042235,-33261.6750929,0.000139,3]
[334277634,1722885042244,-640.0,0.00013962,2]
[334277635,1722885042254,-167.77,0.00013973,2]
[334277636,1722885042263,-153.94,0.00013973,2]
[334277637,1722885042272,-409.36,0.00013973,2]
[334277638,1722885042282,-1176.62868321,0.00013979,2]
[334277639,1722885042292,-2613.12820333,0.00013989,2]
[334277640,1722885042301,-313.53274802,0.00013999,2]
[334277641,1722885042311,-171.79,0.00014012,2]
[334277642,1722885042320,-360.0,0.00014037,2]
[334277643,1722885042330,-199.69,0.0001405,2]
[334277644,1722885042339,-500.0,0.0001415,2]
[334277645,1722885042349,-300.68392301,0.000144,2]
[334277646,1722885042358,-155.0,0.00014579,2]
[334277647,1722885042368,-1500.0,0.00014715,2]
[334277648,1722885042377,-1500.0,0.00014716,2]
[334277649,1722885042387,-150.0,0.00014724,2]
[334277650,1722885042396,-150.0,0.00014727,2]
[334277651,1722885042409,-150.0,0.0001473,2]
[334277652,1722885042419,-150.0,0.00014733,2]
[334277653,1722885042428,-150.0,0.00014735,2]
[334277654,1722885042437,-150.0,0.0001474,2]
[334277655,1722885042447,-150.0,0.00014744,2]
[334277656,1722885042456,-151.12,0.00014748,2]
[334277657,1722885042465,-150.0,0.0001475,2]
[334277658,1722885042474,-168.99996146,0.00014755,2]
[334277659,1722885042484,-150.0,0.00014755,2]
[334277660,1722885042494,-150.0,0.00014756,2]
[334277661,1722885042503,-11087.225031,0.00014758,3]
[334277662,1722885042512,-150.0,0.0001476,2]
[334277663,1722885042521,-150.0,0.00014763,2]
[334277664,1722885042531,-150.0,0.00014766,2]
[334277665,1722885042540,-150.0,0.00014767,2]
[334277666,1722885042549,-150.0,0.00014768,2]
[334277667,1722885042558,-150.0,0.00014773,2]
[334277668,1722885042567,-150.0,0.00014774,2]
[334277669,1722885042576,-150.0,0.0001478,2]
[334277670,1722885042586,-150.0,0.00014783,2]
[334277671,1722885042596,-150.0,0.00014786,2]
[334277672,1722885042605,-150.0,0.00014791,2]
[334277673,1722885042614,-150.0,0.00014796,2]
[334277674,1722885042623,-150.0,0.00014803,2]
[334277675,1722885042633,-150.0,0.00014803,2]
[334277676,1722885042642,-150.0,0.00014804,2]
[334277677,1722885042652,-150.0,0.00014805,2]
[334277678,1722885042661,-150.0,0.00014806,2]
[334277679,1722885042670,-150.0,0.00014806,2]
[334277680,1722885042680,-984.0,0.00014807,2]
[334277681,1722885042690,-150.0,0.00014807,2]
[334277682,1722885042699,-150.0,0.00014809,2]
[334277683,1722885042708,-150.0,0.0001481,2]
[334277684,1722885042717,-150.0,0.0001481,2]
[334277685,1722885042727,-150.0,0.00014814,2]
[334277686,1722885042736,-150.0,0.00014818,2]
[334277687,1722885042745,-233.83150846,0.00014821,2]
[334277703,1722885043100,-150.0,0.00014822,2]
[334277704,1722885043109,-150.0,0.00014824,2]
[334277706,1722885043119,-150.0,0.00014825,2]
[334277709,1722885043129,-150.0,0.0001483,2]
[334277712,1722885043138,-150.0,0.00014833,2]
[334277716,1722885043148,-150.0,0.00014837,2]
[334277719,1722885043162,-150.0,0.00014838,2]
[334277722,1722885043172,-150.0,0.00014841,2]
[334277726,1722885043182,-150.0,0.00014843,2]
[334277728,1722885043192,-150.0,0.00014854,2]
[334277732,1722885043203,-150.0,0.00014856,2]
[334277735,1722885043212,-150.0,0.00014857,2]
[334277738,1722885043222,-150.0,0.00014859,2]
[334277740,1722885043231,-150.0,0.0001486,2]
[334277741,1722885043240,-150.0,0.00014864,2]
[334277742,1722885043251,-150.0,0.00014864,2]
[334277744,1722885043261,-150.0,0.00014864,2]
[334277746,1722885043270,-150.0,0.0001487,2]
[334277748,1722885043281,-150.0,0.0001487,2]
[334277750,1722885043290,-150.0,0.00014872,2]
[334277752,1722885043300,-150.0,0.00014879,2]
[334277754,1722885043309,-735.00345288,0.0001488,2]
[334277756,1722885043318,-150.0,0.00014881,2]
[334277758,1722885043329,-150.0,0.00014883,2]
[334277760,1722885043340,-150.0,0.00014884,2]
[334277762,1722885043350,-150.0,0.00014886,2]
[334277764,1722885043360,-150.0,0.00014889,2]
[334277767,1722885043371,-150.0,0.00014891,2]
[334277768,1722885043381,-150.0,0.00014894,2]
[334277769,1722885043392,-150.0,0.00014897,2]
[334277770,1722885043402,-150.0,0.00014899,2]
[334277771,1722885043412,-150.0,0.00014899,2]
[334277772,1722885043422,-800.0,0.000149,5]
[334277773,1722885043431,-150.0,0.00014902,2]
[334277774,1722885043441,-150.0,0.00014903,2]
[334277775,1722885043450,-150.0,0.00014904,2]
[334277776,1722885043461,-150.0,0.00014904,2]
[334277777,1722885043471,-1500.0,0.00014909,2]
[334277778,1722885043481,-150.0,0.00014909,2]
[334277779,1722885043491,-150.0,0.00014911,2]
[334277780,1722885043501,-150.0,0.00014914,2]
[334277781,1722885043511,-150.0,0.00014917,2]
[334277782,1722885043521,-150.0,0.00014919,2]
[334277783,1722885043531,-150.0,0.0001492,2]
[334277784,1722885043541,-150.0,0.00014924,2]
[334277785,1722885043551,-150.0,0.00014934,2]
[334277786,1722885043560,-150.0,0.00014935,2]
[334277787,1722885043570,-150.0,0.00014937,2]
[334277788,1722885043579,-11087.225031,0.00014939,3]
[334277789,1722885043590,-150.0,0.0001494,2]
[334277790,1722885043601,-10000.0,0.00014949,2]
[334277791,1722885043610,-150.0,0.00014951,2]
[334277792,1722885043619,-150.0,0.00014952,2]
[334277793,1722885043629,-150.0,0.00014952,2]
[334277794,1722885043638,-1500.0,0.00014953,2]
[334277795,1722885043648,-150.0,0.00014954,2]
[334277796,1722885043660,-150.0,0.00014955,2]
[334277797,1722885043669,-150.0,0.0001496,2]
[334277798,1722885043679,-150.0,0.0001496,2]
[334277799,1722885043688,-150.0,0.0001496,2]
[334277800,1722885043698,-150.0,0.00014961,2]
[334277801,1722885043707,-150.0,0.00014967,2]
[334277802,1722885043717,-150.0,0.0001497,2]
[334277803,1722885043726,-1500.0,0.00014971,2]
[334277804,1722885043738,-150.0,0.00014971,2]
[334277805,1722885043747,-1500.0,0.00014972,2]
[334277806,1722885043756,-150.0,0.00014972,2]
[334277807,1722885043765,-150.0,0.00014978,2]
[334277808,1722885043774,-150.0,0.00014978,2]
[334277809,1722885043784,-150.0,0.00014979,2]
[334277810,1722885043794,-150.0,0.0001498,2]
[334277811,1722885043803,-150.0,0.00014985,2]
[334277812,1722885043812,-150.0,0.00014987,2]
[334277813,1722885043822,-150.0,0.00014987,2]
[334277814,1722885043831,-11143.39384746,0.0001499,3]
[334277815,1722885043845,-11031.05621454,0.0001499,3]
[334277816,1722885043855,-150.0,0.00014993,2]
[334277817,1722885043865,-150.0,0.00014995,2]
[334277818,1722885043874,-187.61,0.00014996,2]
[334277819,1722885043888,-20029.48089212,0.00015,7]
[334277820,1722885043898,-607.05229577,0.00015,10]
[334277821,1722885043916,-220.66511997,0.00015,2]
[334277822,1722885043927,-5000.0,0.00015,7]
[334277823,1722885043937,-1056.57689982,0.00015,2]
[334277824,1722885043950,-1547.0,0.00015,2]
[334277842,1722885046137,-229.66,0.00012,2]
[334277844,1722885046147,-229.66,0.00012,2]
[334277845,1722885046158,-76.215,0.00012,2]
[334277846,1722885046174,-153.445,0.00012,2]
[334277850,1722885046183,-229.66,0.00012,2]
[334277853,1722885046193,-229.66,0.00012,2]
[334277857,1722885046203,-229.66,0.00012,2]
[334277860,1722885046212,-229.66,0.00012,2]
[334277863,1722885046222,-500.0,0.00013972,2]
[334277866,1722885046231,-500.0,0.00013972,2]
[334277869,1722885046241,-500.0,0.00013972,2]
[334277871,1722885046250,-500.0,0.00013972,2]
[334277873,1722885046260,-500.0,0.00013972,2]
[334277875,1722885046269,-500.0,0.00013972,2]
[334277877,1722885046279,-500.0,0.00013972,2]
[334277879,1722885046288,-500.0,0.00013972,2]
[334277881,1722885046299,-500.0,0.00013972,2]
[334277883,1722885046308,-500.0,0.00013972,2]
[334277885,1722885046318,-99.5102299,0.00013972,2]
[334277887,1722885046330,-400.4897701,0.00013972,2]
[334277889,1722885046341,-500.0,0.00013972,2]
[334277891,1722885046351,-500.0,0.00013972,2]
[334277893,1722885046361,-500.0,0.00013972,2]
[334277895,1722885046370,-500.0,0.00013972,2]
[334277897,1722885046380,-500.0,0.00013972,2]
[334277899,1722885046390,-500.0,0.00013972,2]
[334277901,1722885046402,-500.0,0.00013972,2]
[334277903,1722885046412,-500.0,0.00013972,2]
[334277905,1722885046422,-500.0,0.00013972,2]
[334277907,1722885046432,-500.0,0.00013972,2]
[334277909,1722885046442,-500.0,0.00013972,2]
[334277910,1722885046453,-500.0,0.00013972,2]
[334277911,1722885046463,-500.0,0.00013972,2]
[334277912,1722885046473,-500.0,0.00013972,2]
[334277913,1722885046484,-500.0,0.00013972,2]
[334277914,1722885046494,-500.0,0.00013972,2]